fUST/lending_fUST_20260317
["ID","MTS","AMOUNT","RATE_DAILY","PERIOD"]
[408462997,1773685838008,-290.4254974,8.3e-05,2]
[408462998,1773685838017,-29920.0,8.3e-05,2]
[408462999,1773685838026,-500.0,8.32e-05,2]
[408463000,1773685838036,-428.40984641,8.32e-05,2]
[408463001,1773685838045,-500.0,8.32e-05,2]
[408463003,1773685838054,-500.0,8.32e-05,2]
[408463004,1773685838064,-500.0,8.32e-05,2]
[408463005,1773685838073,-500.0,8.32e-05,2]
[408463006,1773685838082,-572.75953251,8.32e-05,2]
[408463007,1773685838091,-171.13081367,8.32e-05,2]
[408463008,1773685838102,-500.0,8.32e-05,2]
[408463009,1773685838111,-500.0,8.32e-05,2]
[408463010,1773685838120,-500.0,8.32e-05,2]
[408463011,1773685838129,-500.0,8.32e-05,2]
[408463012,1773685838138,-25794.70106189,8.321e-05,2]
[408463013,1773685838147,-500.0,8.383e-05,2]
[408463014,1773685838158,-580.87493268,8.383e-05,2]
[408463015,1773685838167,-500.0,8.383e-05,2]
[408463016,1773685838176,-500.0,8.383e-05,2]
[408463017,1773685838185,-502.46610768,8.383e-05,2]
[408463018,1773685838194,-500.0,8.383e-05,2]
[408463019,1773685838203,-160.01278199,8.383e-05,2]
[408463020,1773685838212,-500.0,8.383e-05,2]
[408463021,1773685838222,-500.0,8.383e-05,2]
[408463022,1773685838231,-501.27527013,8.383e-05,2]
[408463023,1773685838241,-520.22975727,8.383e-05,2]
[408463024,1773685838250,-500.0,8.383e-05,2]
[408463025,1773685838260,-611.1226682,8.404e-05,2]
[408463026,1773685838269,-178.03974866,8.404e-05,2]
[408463027,1773685838279,-46002.47733836,8.405e-05,2]
[408463028,1773685838298,-96488.55045941,8.405e-05,2]
[408463035,1773685840393,-6633.79902719,8.405e-05,2]
[408463050,1773685843038,-5000.0,7.833e-05,2]
[408463051,1773685843048,-13976.808436,8.405e-05,2]
[408463052,1773685843198,-1580.71166212,8.405e-05,2]
[408463053,1773685843219,-15267.89560825,8.405e-05,2]
[408463067,1773685845959,-402301.14397641,8.405e-05,2]
[408463072,1773685846233,-695.1387042,8.405e-05,2]
[408463073,1773685882457,-2807.1277448,8.238e-05,2]
[408463103,1773687031924,-5000.0,7.301e-05,2]
[408463105,1773687031935,-2498.06380252,7.375e-05,2]
[408463111,1773687031981,-2472.2883039,7.375e-05,2]
[408463113,1773687031990,-525.0,7.45e-05,2]
[408463116,1773687032000,-608.858134,8.007e-05,2]
[408463118,1773687032010,-1082.0,8.299e-05,2]
[408463120,1773687032021,-485.09194597,8.3e-05,2]
[408463122,1773687032030,-1025.96007943,8.3e-05,2]
[408463125,1773687032040,-1136.18614629,8.3e-05,2]
[408463127,1773687032050,-1161.56995572,8.3e-05,2]
[408463129,1773687032060,-241.23675707,8.32e-05,2]
[408463131,1773687032069,-500.0,8.32e-05,2]
[408463133,1773687032079,-397.45266707,8.32e-05,2]
[408463135,1773687032088,-359.77507373,8.32e-05,2]
[408463137,1773687032098,-232.347,8.32e-05,2]
[408463139,1773687032107,-1609.95272775,8.32e-05,2]
[408463141,1773687032119,-373.22563022,8.32e-05,2]
[408463143,1773687032129,-6148.09984698,8.321e-05,2]
[408463145,1773687032139,-2455.80374591,8.321e-05,2]
[408463148,1773687032150,-324.47130679,8.321e-05,2]
[408463297,1773687040539,-456.75604197,8.321e-05,2]
[408463299,1773687040598,-698.91,8.321e-05,2]
[408463326,1773687043325,-700.0,8.238e-05,2]
[408463329,1773687043433,-337.72830889,8.238e-05,2]
[408463330,1773687043444,-1033.0,8.238e-05,2]
[408463331,1773687043490,-2929.27169111,8.238e-05,2]
[408463332,1773687043499,-10653.05865726,8.321e-05,2]
[408463333,1773687043509,-79235.82367654,8.321e-05,2]
[408463334,1773687043518,-10040.6131295,8.321e-05,2]
[408463335,1773687043527,-69104.27021771,8.321e-05,2]
[408463372,1773687046138,-23424.47013629,8.321e-05,2]
[408463373,1773687046192,-3677.68495005,8.321e-05,2]
[408463374,1773687046202,-1142.3617184,8.321e-05,2]
[408463375,1773687046233,-71329.83703091,8.321e-05,2]
[408463402,1773687662249,-2371.24530903,7.993e-05,2]
[408463408,1773687811770,-2371.24530903,7.913e-05,2]
[408463409,1773687811797,-2128.75469097,7.976e-05,2]
[408463462,1773688232465,-709.050005,7.36e-05,2]
[408463465,1773688232477,-296.92009493,7.36e-05,2]
[408463518,1773688238255,-2371.24530903,7.286e-05,2]
[408463519,1773688238267,-3929.65173998,7.36e-05,2]
[408463520,1773688238277,-5000.0,7.434e-05,2]
[408463521,1773688238287,-526.0,7.509e-05,2]
[408463522,1773688238296,-870.7482395,7.976e-05,2]
[408463523,1773688238306,-2397.08181712,8.076e-05,2]
[408463571,1773688240737,-4062.40165396,8.076e-05,2]
[408463573,1773688240747,-7185.45336819,8.176e-05,2]
[408463575,1773688240757,-185.878,8.176e-05,2]
[408463577,1773688240767,-7421.6109802,8.276e-05,2]
[408463579,1773688240777,-7911.42326537,8.3e-05,2]
[408463581,1773688240787,-237.43490268,8.3e-05,2]
[408463583,1773688240796,-413.75053701,8.3e-05,2]
[408463585,1773688240806,-382.4314987,8.3e-05,2]
[408463587,1773688240816,-189.6157939,8.3e-05,2]
[408463855,1773688243482,-437.94669,7.213e-05,2]
[408463858,1773688243496,-1084.78756458,7.213e-05,2]
[408463860,1773688243511,-1656.12941692,7.213e-05,2]
[408463863,1773688243526,-744.00654836,7.213e-05,2]
[408463865,1773688243539,-1077.12978014,7.213e-05,2]
[408463868,1773688243550,-220.08352986,8.3e-05,2]
[408463878,1773688243640,-20.09717122,8.3e-05,2]
[408463881,1773688243652,-30818.6002908,8.32e-05,2]
[408463884,1773688243662,-317.48901151,8.32e-05,2]
[408463887,1773688243674,-500.0,8.32e-05,2]
[408463890,1773688243686,-500.0,8.32e-05,2]
[408463892,1773688243698,-432.64819041,8.32e-05,2]
[408463894,1773688243710,-500.0,8.32e-05,2]
[408463896,1773688243721,-239.96211677,8.32e-05,2]
[408463899,1773688243734,-500.0,8.32e-05,2]
[408463901,1773688243746,-310.5347409,8.32e-05,2]
[408463903,1773688243758,-14669.87684401,8.321e-05,2]
[408463906,1773688243770,-2343.25962389,8.321e-05,2]
[408463908,1773688243782,-169033.76568101,8.321e-05,2]
[408463911,1773688243792,-608.858134,8.344e-05,2]
[408463914,1773688243802,-1763.3006424,8.361e-05,2]
[408463917,1773688243812,-500.0,8.383e-05,2]
[408463920,1773688243823,-500.0,8.383e-05,2]
[408463922,1773688243834,-500.0,8.383e-05,2]
[408463924,1773688243846,-500.0,8.383e-05,2]
[408463927,1773688243860,-500.0,8.383e-05,2]
[408463929,1773688243872,-80007.09505322,8.405e-05,2]
[408463968,1773688246330,-20540.1976027,8.405e-05,2]
[408463969,1773688246514,-1245.14528569,8.405e-05,2]
[408463970,1773688246549,-12665.19392241,8.405e-05,2]
[408463982,1773689432237,-676.03949715,6.805e-05,2]
[408463985,1773689432293,-722.10407966,6.805e-05,2]
[408463987,1773689432303,-5000.0,6.874e-05,2]
[408463989,1773689432312,-1382.69365887,6.943e-05,2]
[408463992,1773689432321,-518.0,6.943e-05,2]
[408463995,1773689432330,-438.05042033,7.228e-05,2]
[408463998,1773689432340,-3150.82862281,7.839e-05,2]
[408464001,1773689432349,-285.71573353,7.839e-05,2]
[408464004,1773689432358,-1142.8629341,7.839e-05,2]
[408464006,1773689432368,-2571.44160173,7.839e-05,2]
[408464008,1773689432377,-5601.47310721,7.844e-05,2]
[408464037,1773689432586,-4571.45173641,7.844e-05,2]
[408464042,1773689432677,-350.0920692,7.891e-05,2]
[408464044,1773689432687,-1400.3682768,7.891e-05,2]
[408464046,1773689432697,-405.905422,8.03e-05,2]
[408464048,1773689432706,-539.52520233,8.243e-05,2]
[408464050,1773689432716,-200.194,8.257e-05,2]
[408464052,1773689432725,-266.7185742,8.3e-05,2]
[408464054,1773689432734,-459.764199,8.3e-05,2]
[408464056,1773689432744,-384.31529143,8.3e-05,2]
[408464591,1773689440821,-139.03933027,8.3e-05,2]
[408464592,1773689440830,-501.55121744,8.3e-05,2]
[408464594,1773689440840,-173.82909629,8.321e-05,2]
[408464656,1773689445706,-898.34076313,8.321e-05,2]
[408464658,1773689445715,-121.65923687,8.369e-05,2]
[408464661,1773689445726,-284.24618513,8.369e-05,2]
[408464662,1773689445736,-638.49109479,8.383e-05,2]
[408464664,1773689445745,-500.0,8.383e-05,2]
[408464665,1773689445754,-500.0,8.383e-05,2]
[408464666,1773689445763,-500.0,8.383e-05,2]
[408464667,1773689445771,-500.0,8.383e-05,2]
[408464668,1773689445780,-500.0,8.383e-05,2]
[408464669,1773689445790,-500.0,8.383e-05,2]
[408464670,1773689445799,-500.0,8.404e-05,2]
[408464671,1773689445808,-271.08036066,8.404e-05,2]
[408464672,1773689445817,-230.0178383,8.404e-05,2]
[408464673,1773689445827,-60076.16452112,8.405e-05,2]
[408464674,1773689445838,-961472.93879388,8.405e-05,2]
[408464675,1773689445869,-9417.53641781,8.405e-05,2]
[408464677,1773689445880,-1074.91166387,8.405e-05,2]
[408464678,1773689445892,-706.55138873,8.405e-05,2]
[408464684,1773689446417,-3625.61654223,8.405e-05,2]
[408464685,1773689446632,-3519.77913203,8.405e-05,2]
[408464686,1773689482138,-1581.69466425,8.238e-05,2]
[408464717,1773690632400,-3655.85523171,6.874e-05,2]
[408464719,1773690632412,-700.499995,6.874e-05,2]
[408464725,1773690632453,-643.64477329,6.874e-05,2]
[408464726,1773690632462,-517.0,6.874e-05,2]
[408464728,1773690632471,-463.38282993,6.943e-05,2]
[408464730,1773690632480,-3461.75656612,6.999e-05,2]
[408464732,1773690632489,-300.0,7.012e-05,2]
[408464734,1773690632498,-1581.69466425,7.013e-05,2]
[408464736,1773690632508,-1794.22982721,7.017e-05,2]
[408464833,1773690638799,-361.71288128,7.017e-05,2]
[408464835,1773690638808,-7328.38714705,7.099e-05,2]
[408464837,1773690638818,-8167.1293114,7.199e-05,2]
[408464839,1773690638827,-8743.54942829,7.272e-05,2]
[408464841,1773690638836,-7135.75044481,7.272e-05,2]
[408464843,1773690638845,-8567.47623583,7.299e-05,2]
[408464845,1773690638855,-9005.87147584,7.399e-05,2]
[408464847,1773690638866,-211.049,8.219e-05,2]
[408464849,1773690638875,-1793.9500403,8.219e-05,2]
[408464851,1773690638885,-500.0,8.303e-05,2]
[408464853,1773690638895,-500.0,8.303e-05,2]
[408464855,1773690638904,-500.0,8.303e-05,2]
[408464857,1773690638915,-271.89168972,8.303e-05,2]
[408464859,1773690638924,-500.0,8.303e-05,2]
[408464861,1773690638933,-500.0,8.303e-05,2]
[408464863,1773690638942,-500.0,8.303e-05,2]
[408464865,1773690638951,-365.0277092,8.303e-05,2]
[408464867,1773690638960,-500.0,8.303e-05,2]
[408464869,1773690638970,-500.0,8.303e-05,2]
[408464871,1773690638979,-500.0,8.303e-05,2]
[408464873,1773690638988,-500.0,8.303e-05,2]
[408464874,1773690638997,-500.0,8.303e-05,2]
[408464875,1773690639007,-500.0,8.303e-05,2]
[408464877,1773690639016,-500.0,8.303e-05,2]
[408464879,1773690639024,-500.0,8.303e-05,2]
[408464881,1773690639033,-283.96588534,8.32e-05,2]
[408464883,1773690639043,-582.27316675,8.32e-05,2]
[408464885,1773690639052,-434457.11904497,8.321e-05,2]
[408464887,1773690639061,-1635.28959165,8.321e-05,2]
[408464888,1773690639070,-895.61717007,8.321e-05,2]
[408464890,1773690639079,-172.37684368,8.321e-05,2]
[408464892,1773690639088,-454.870675,8.405e-05,2]
[408464894,1773690639097,-2299218.70671376,8.405e-05,2]
[408464897,1773690639109,-1509.5865512,8.405e-05,2]
[408464899,1773690639120,-253.0,8.405e-05,2]
[408464966,1773690641001,-1635.28959165,8.405e-05,2]
[408465005,1773690646699,-1359.0,8.405e-05,2]
[408465047,1773691831688,-463.38282993,6.09e-05,2]
[408465054,1773691831744,-593.60805185,6.09e-05,2]
[408465056,1773691831754,-348.16214739,6.152e-05,2]
[408465200,1773691837693,-687.33916467,6.152e-05,2]
[408465207,1773691840052,-812.04690215,6.152e-05,2]
[408465218,1773691842846,-1290.92537905,6.152e-05,2]
[408465219,1773691842856,-1200.0,6.213e-05,2]
[408465220,1773691842866,-5000.0,6.214e-05,2]
[408465221,1773691842875,-509.0,6.214e-05,2]
[408465222,1773691842885,-300.0,6.276e-05,2]
[408465223,1773691842895,-300.0,6.276e-05,2]
[408465224,1773691842905,-300.0,6.276e-05,2]
[408465225,1773691842914,-3625.6,6.277e-05,2]
[408465226,1773691842924,-300.0,6.339e-05,2]
[408465227,1773691842934,-300.0,6.731e-05,2]
[408465228,1773691842944,-300.0,6.731e-05,2]
[408465229,1773691842954,-300.0,6.731e-05,2]
[408465230,1773691842964,-300.0,6.731e-05,2]
[408465231,1773691842973,-300.0,6.731e-05,2]
[408465232,1773691842984,-300.0,6.731e-05,2]
[408465233,1773691842993,-300.0,6.731e-05,2]
[408465234,1773691843003,-300.0,6.731e-05,2]
[408465235,1773691843013,-300.0,6.731e-05,2]
[408465236,1773691843023,-300.0,6.731e-05,2]
[408465237,1773691843033,-300.0,6.731e-05,2]
[408465238,1773691843042,-300.0,6.731e-05,2]
[408465239,1773691843052,-300.0,6.731e-05,2]
[408465240,1773691843061,-300.0,6.731e-05,2]
[408465241,1773691843070,-300.0,6.731e-05,2]
[408465242,1773691843079,-1680.0,6.834e-05,2]
[408465243,1773691843089,-420.0,6.904e-05,2]
[408465244,1773691843099,-300.0,6.904e-05,2]
[408465245,1773691843109,-2351.0,7.518e-05,2]
[408465247,1773691843118,-335.0,7.594e-05,2]
[408465249,1773691843127,-8220.695912,8.321e-05,2]
[408465251,1773691843138,-861.45961927,8.365e-05,2]
[408465253,1773691843154,-7308.31626893,8.365e-05,2]
[408465255,1773691843164,-1257.8656636,8.365e-05,2]
[408465256,1773691843173,-228.10831028,8.383e-05,2]
[408465257,1773691843182,-500.05039856,8.383e-05,2]
[408465258,1773691843191,-500.0,8.383e-05,2]
[408465259,1773691843201,-500.0,8.383e-05,2]
[408465260,1773691843210,-500.0,8.383e-05,2]
[408465261,1773691843220,-500.0,8.383e-05,2]
[408465262,1773691843229,-500.0,8.383e-05,2]
[408465263,1773691843239,-407.59121673,8.404e-05,2]
[408465264,1773691843249,-500.0,8.404e-05,2]
[408465265,1773691843260,-500.0,8.404e-05,2]
[408465266,1773691843269,-500.0,8.404e-05,2]
[408465267,1773691843278,-198.77611974,8.404e-05,2]
[408465268,1773691843287,-158795.46532663,8.405e-05,2]
[408465269,1773691843304,-10000.0,8.405e-05,2]
[408465270,1773691843316,-1063.22833613,8.405e-05,2]
[408465278,1773691846323,-24240.68112634,8.405e-05,2]
[408465279,1773691846335,-6290.123113,8.405e-05,2]
[408465280,1773691846347,-45223.8361349,8.405e-05,2]
[408465308,1773692682373,-1288.9033147,0.00034893,120]
[408465309,1773692682400,-1466.27,0.00034893,120]
[408465310,1773692682428,-1466.27,0.00034893,120]
[408465311,1773692682455,-1466.27,0.00034893,120]
[408465312,1773692682485,-1466.27,0.00034893,120]
[408465313,1773692682527,-1466.27,0.00034893,120]
[408465314,1773692682557,-1466.27,0.00034893,120]
[408465315,1773692682586,-1466.27,0.00034893,120]
[408465316,1773692682614,-1466.27,0.00034893,120]
[408465317,1773692682640,-1466.27,0.00034893,120]
[408465318,1773692682668,-1466.27,0.00034893,120]
[408465319,1773692682697,-1466.27,0.00034893,120]
[408465320,1773692682724,-1466.27,0.00034893,120]
[408465321,1773692682754,-1466.27,0.00034893,120]
[408465322,1773692682781,-1466.27,0.00034893,120]
[408465323,1773692682809,-1466.42408419,0.00034893,120]
[408465324,1773692682836,-308.220739,0.00034893,120]
[408465325,1773692682862,-384.71837143,0.00034893,120]
[408465326,1773692682894,-797.95033,0.00034893,60]
[408465327,1773692682922,-736.87862,0.00034893,60]
[408465328,1773692682948,-797.95033,0.00034893,60]
[408465329,1773692682984,-797.95033,0.00034893,60]
[408465330,1773692683012,-797.95033,0.00034893,60]
[408465331,1773692683039,-797.95033,0.00034893,60]
[408465332,1773692683065,-400.0,0.00034893,120]
[408465333,1773692683093,-500.0,0.00034893,120]
[408465334,1773692683121,-500.0,0.00034893,120]
[408465335,1773692683148,-500.0,0.00034893,120]
[408465336,1773692683174,-500.0,0.00034893,120]
[408465337,1773692683199,-500.0,0.00034893,120]
[408465338,1773692683224,-500.0,0.00034893,120]
[408465339,1773692683250,-500.0,0.00034893,120]
[408465340,1773692683277,-500.0,0.00034893,120]
[408465341,1773692683308,-500.0,0.00034893,120]
[408465342,1773692683336,-500.0,0.00034893,120]
[408465343,1773692683362,-500.0,0.00034893,120]
[408465344,1773692683390,-499.65574092,0.00034893,120]
[408465345,1773692683416,-500.0,0.00034893,120]
[408465346,1773692683443,-500.0,0.00034893,120]
[408465347,1773692683469,-500.0,0.00034893,120]
[408465348,1773692683498,-606.14367782,0.00034893,120]
[408465349,1773692683526,-3218.0,0.00034893,120]
[408465350,1773692683553,-500.0,0.00034893,120]
[408465351,1773692683582,-500.0,0.00034893,120]
[408465352,1773692683611,-168.30867727,0.00034893,120]
[408465353,1773692683640,-318.00420512,0.00034893,120]
[408465354,1773692683670,-248.09421752,0.00034893,90]
[408465355,1773692683700,-213.85922405,0.00034893,120]
[408465356,1773692683732,-260.9038613,0.00034893,120]
[408465357,1773692683761,-173.47079063,0.00034893,120]
[408465358,1773692683788,-291.60626437,0.00034893,120]
[408465359,1773692683818,-453.12208099,0.00034893,120]
[408465360,1773692683843,-154.14023832,0.00034893,120]
[408465361,1773692683868,-153.00963099,0.00034893,120]
[408465362,1773692683895,-293.41222484,0.00034893,120]
[408465363,1773692683920,-152.04939518,0.00034893,120]
[408465364,1773692683947,-276.07728378,0.00034893,120]
[408465365,1773692683973,-156.39544526,0.00034893,120]
[408465366,1773692684000,-329.28671182,0.00034893,120]
[408465367,1773692684026,-151.2943191,0.00034893,120]
[408465368,1773692684052,-500.0,0.00034893,120]
[408465369,1773692684077,-500.0,0.00034893,120]
[408465370,1773692684103,-500.0,0.00034893,120]
[408465371,1773692684128,-500.0,0.00034893,120]
[408465372,1773692684153,-500.0,0.00034893,120]
[408465373,1773692684181,-500.0,0.00034893,120]
[408465374,1773692684211,-502.05076091,0.00034893,120]
[408465375,1773692684237,-500.0,0.00034893,120]
[408465376,1773692684265,-453.41271162,0.00034893,120]
[408465377,1773692684294,-500.0,0.00034893,120]
[408465378,1773692684320,-514.94307978,0.00034893,120]
[408465379,1773692684345,-339.38186633,0.00034893,120]
[408465380,1773692684371,-859.86,0.00034893,120]
[408465381,1773692684397,-859.86,0.00034893,120]
[408465382,1773692684422,-859.86,0.00034893,120]
[408465383,1773692684448,-859.86,0.00034893,120]
[408465384,1773692684476,-859.86,0.00034893,120]
[408465385,1773692684503,-859.86,0.00034893,120]
[408465386,1773692684531,-859.86,0.00034893,120]
[408465387,1773692684557,-859.86,0.00034893,120]
[408465388,1773692684585,-859.86,0.00034893,120]
[408465389,1773692684615,-859.86,0.00034893,120]
[408465390,1773692684643,-859.86,0.00034893,120]
[408465391,1773692684672,-859.86,0.00034893,120]
[408465392,1773692684699,-859.86,0.00034893,120]
[408465393,1773692684726,-859.86,0.00034893,120]
[408465394,1773692684752,-859.86,0.00034893,120]
[408465395,1773692684776,-859.86,0.00034893,120]
[408465396,1773692684802,-859.86,0.00034893,120]
[408465397,1773692684828,-859.86,0.00034893,120]
[408465398,1773692684853,-859.86,0.00034893,120]
[408465399,1773692685115,-859.86,0.00034893,120]
[408465400,1773692685142,-859.86,0.00034893,120]
[408465401,1773692685168,-859.86,0.00034893,120]
[408465402,1773692685193,-859.86,0.00034893,120]
[408465403,1773692685218,-859.92,0.00034893,120]
[408465404,1773692685243,-298.57052568,0.00034893,120]
[408465405,1773692685268,-568.06510623,0.00034893,120]
[408465406,1773692685294,-500.0,0.00034893,120]
[408465407,1773692685319,-500.0,0.00034893,120]
[408465408,1773692685343,-500.0,0.00034893,120]
[408465409,1773692685368,-500.0,0.00034893,120]
[408465410,1773692685392,-500.0,0.00034893,120]
[408465411,1773692685416,-399.59600378,0.00034893,120]
[408465412,1773692685442,-1719.72,0.00034893,120]
[408465413,1773692685467,-1719.72,0.00034893,120]
[408465414,1773692685495,-1719.72,0.00034893,120]
[408465415,1773692685522,-1719.72,0.00034893,120]
[408465416,1773692685547,-1719.72,0.00034893,120]
[408465417,1773692685572,-1719.72,0.00034893,120]
[408465418,1773692685597,-1719.72,0.00034893,120]
[408465419,1773692685628,-1719.72,0.00034893,120]
[408465420,1773692685653,-1719.72,0.00034893,120]
[408465421,1773692685678,-1719.72,0.00034893,120]
[408465422,1773692685703,-1719.72,0.00034893,120]
[408465423,1773692685729,-1719.72,0.00034893,120]
[408465424,1773692685759,-1719.72,0.00034893,120]
[408465425,1773692685785,-1719.72,0.00034893,120]
[408465426,1773692685812,-1719.72,0.00034893,120]
[408465427,1773692685838,-1719.72,0.00034893,120]
[408465428,1773692685864,-1719.72,0.00034893,120]
[408465429,1773692685891,-1719.72,0.00034893,120]
[408465430,1773692685917,-1719.72,0.00034893,120]
[408465431,1773692685942,-1719.72,0.00034893,120]
[408465432,1773692685967,-1719.72,0.00034893,120]
[408465433,1773692685994,-1719.72,0.00034893,120]
[408465434,1773692686019,-1719.72,0.00034893,120]
[408465435,1773692686045,-1719.84,0.00034893,120]
[408465436,1773692686072,-569.03830065,0.00034893,120]
[408465437,1773692686096,-500.0,0.00034893,120]
[408465438,1773692686122,-432.33890054,0.00034893,120]
[408465439,1773692686147,-503.77972403,0.00034893,120]
[408465440,1773692686173,-186.94776941,0.00034893,120]
[408465441,1773692686198,-500.0,0.00034893,120]
[408465442,1773692686226,-500.0,0.00034893,120]
[408465443,1773692686251,-578.0220837,0.00034893,120]
[408465444,1773692686278,-407.81822559,0.00034893,120]
[408465445,1773692686305,-174.08642454,0.00034893,120]
[408465446,1773692686331,-167.67359573,0.00034893,120]
[408465447,1773692686356,-509.53655859,0.00034893,120]
[408465448,1773692686383,-156.93065068,0.00034893,120]
[408465449,1773692686407,-502.59485303,0.00034893,120]
[408465450,1773692686432,-563.60749026,0.00034893,120]
[408465451,1773692686459,-348.70403977,0.00034893,120]
[408465452,1773692686489,-503.47121729,0.00034893,120]
[408465453,1773692686517,-517.11131088,0.00034893,120]
[408465454,1773692686548,-509.59497814,0.00034893,120]
[408465455,1773692686577,-623.41378147,0.00034893,120]
[408465456,1773692686606,-508.04954626,0.00034893,120]
[408465457,1773692686637,-157.55147285,0.00034893,120]
[408465458,1773692686666,-588.31325126,0.00034893,120]
[408465459,1773692686694,-526.101441,0.00034893,120]
[408465460,1773692686721,-189.86007244,0.00034893,120]
[408465461,1773692686750,-504.70549017,0.00034893,120]
[408465462,1773692686778,-239.74401594,0.00034893,120]
[408465463,1773692686804,-500.91378715,0.00034893,120]
[408465464,1773692686832,-247.27497438,0.00034893,120]
[408465465,1773692686858,-500.0,0.00034893,120]
[408465466,1773692686885,-500.0,0.00034893,120]
[408465467,1773692686912,-500.0,0.00034893,120]
[408465468,1773692686940,-500.0,0.00034893,120]
[408465469,1773692686969,-347.97024881,0.00034893,120]
[408465470,1773692686997,-500.0,0.00034893,120]
[408465471,1773692687025,-500.0,0.00034893,120]
[408465472,1773692687052,-500.0,0.00034893,120]
[408465473,1773692687080,-500.0,0.00034893,120]
[408465474,1773692687109,-268.07434633,0.00034893,120]
[408465475,1773692687137,-160.10265361,0.00034893,120]
[408465476,1773692687164,-10000.0,0.00034893,90]
[408465477,1773692687192,-7849.0,0.00034893,120]
[408465478,1773692687219,-500.16414692,0.00034893,120]
[408465479,1773692687246,-2292.65,0.00034893,120]
[408465480,1773692687275,-2292.65,0.00034893,120]
[408465481,1773692687302,-2292.65,0.00034893,120]
[408465482,1773692687330,-2292.65,0.00034893,120]
[408465483,1773692687358,-2292.65,0.00034893,120]
[408465484,1773692687386,-2292.65,0.00034893,120]
[408465485,1773692687416,-2292.65,0.00034893,120]
[408465486,1773692687445,-2292.65,0.00034893,120]
[408465487,1773692687476,-2292.65,0.00034893,120]
[408465488,1773692687506,-2292.65,0.00034893,120]
[408465489,1773692687536,-2292.65,0.00034893,120]
[408465490,1773692687565,-2292.65,0.00034893,120]
[408465491,1773692687592,-2292.65,0.00034893,120]
[408465492,1773692687620,-2292.65,0.00034893,120]
[408465493,1773692687649,-2292.65,0.00034893,120]
[408465494,1773692687678,-2292.65,0.00034893,120]
[408465495,1773692687706,-2292.65,0.00034893,120]
[408465496,1773692687735,-2292.65,0.00034893,120]
[408465497,1773692687764,-2292.65,0.00034893,120]
[408465498,1773692687791,-2292.65,0.00034893,120]
[408465499,1773692687818,-2292.65,0.00034893,120]
[408465500,1773692687845,-2292.65,0.00034893,120]
[408465501,1773692687871,-2292.65,0.00034893,120]
[408465502,1773692688147,-2292.79786911,0.00034893,120]
[408465503,1773692688177,-500.0,0.00034893,120]
[408465504,1773692688208,-500.0,0.00034893,120]
[408465505,1773692688237,-500.0,0.00034893,120]
[408465506,1773692688265,-534.95085862,0.00034893,120]
[408465507,1773692688292,-500.0,0.00034893,120]
[408465508,1773692688319,-500.0,0.00034893,120]
[408465509,1773692688346,-157.00468794,0.00034893,120]
[408465510,1773692688372,-434.13,0.00034893,120]
[408465511,1773692688398,-414.664575,0.00034893,120]
[408465512,1773692688424,-4000.0,0.00034893,120]
[408465513,1773692688452,-503.27,0.00034893,120]
[408465514,1773692688481,-503.27,0.00034893,120]
[408465515,1773692688511,-503.27,0.00034893,120]
[408465516,1773692688543,-503.37460014,0.00034893,120]
[408465517,1773692688573,-297.5150855,0.00034893,120]
[408465518,1773692688600,-449.20506489,0.00034893,120]
[408465519,1773692688628,-168.64253898,0.00034893,120]
[408465520,1773692688656,-292.61189093,0.00034893,120]
[408465521,1773692688684,-164.09526977,0.00034893,120]
[408465522,1773692688714,-156.2569561,0.00034893,120]
[408465523,1773692688742,-186.12824787,0.00034893,120]
[408465524,1773692688771,-186.61783644,0.00034893,120]
[408465525,1773692688799,-155.02185559,0.00034893,120]
[408465526,1773692688824,-275.03802,0.00034893,60]
[408465527,1773692688851,-162.0,0.00034893,120]
[408465528,1773692688878,-500.0,0.00034893,120]
[408465529,1773692688905,-500.0,0.00034893,120]
[408465530,1773692688931,-601.93782644,0.00034893,120]
[408465531,1773692688958,-500.0,0.00034893,120]
[408465532,1773692688986,-500.0,0.00034893,120]
[408465533,1773692689013,-500.0,0.00034893,120]
[408465534,1773692689040,-500.0,0.00034893,120]
[408465535,1773692689067,-500.0,0.00034893,120]
[408465536,1773692689093,-500.0,0.00034893,120]
[408465537,1773692689119,-500.0,0.00034893,120]
[408465538,1773692689146,-500.0,0.00034893,120]